[Event "Frauenbundesliga 2021-22"]
[Site "Germany"]
[Date "2022.04.10"]
[Round "8.8"]
[White "Kulon, Klaudia"]
[Black "Schleining, Zoya"]
[Result "1-0"]
[ECO "D00"]
[WhiteElo "2319"]
[BlackElo "2320"]
[Annotator "NA RC"]
[PlyCount "117"]
[EventDate "2021.11.26"]
[EventType "team-tourn"]
[EventCountry "GER"]
[SourceTitle "playchess.com"]
[Source "ChessBase"]
[SourceQuality "1"]
[WhiteTeam "LEI"]
[BlackTeam "DEI"]
[WhiteTeamCountry "POL"]
[BlackTeamCountry "GER"]
[TimeControl "40/5400+30:1800+30"]

1. d4 {[%emt 0:01:00]} d5 {[%emt 0:01:00]} 2. Bf4 {[%emt 0:00:00]} e6 {[%emt 0:00:30]} 3. Nc3 {[%emt 0:00:00]} Bd6 {[%emt 0:00:00]} 4. Qd2 {[%emt 0:01:30]} Nf6 {[%emt 0:02:00]} 5. f3 {[%emt 0:03:30]} Bxf4 {[%emt 0:05:30]} 6. Qxf4 {[%emt 0:00:00]} Qd6 {[%emt 0:00:30]} 7. Nh3 {[%emt 0:11:00]} Nc6 {[%emt 0:09:30]} 8. O-O-O {[%emt 0:03:30]} Qxf4+ {[%emt 0:13:30]} 9. Nxf4 {[%emt 0:00:30]} g5 {[%emt 0:07:30]} 10. Nh3 {[%emt 0:01:30]} h6 {[%emt 0:00:30]} 11. Nf2 {[%emt 0:00:00]} Bd7 {[%emt 0:00:30]} 12. h4 {[%emt 0:03:00]} O-O-O {[%emt 0:01:30]} 13. e4 $11 {[%emt 0:00:30]} Rdg8 {[%emt 0:09:30]} 14. e5 {[%emt 0:04:30]} Nh5 {[%emt 0:02:30]} 15. hxg5 {[%emt 0:05:30]} hxg5 {[%emt 0:00:30]} 16. Bb5 {[%emt 0:00:30]} Ne7 {[%emt 0:03:30]} 17. Bxd7+ {[%emt 0:04:30]} Kxd7 {[%emt 0:00:30]} 18. Ng4 {[%emt 0:00:30]} Ng3 {[%emt 0:00:30]} 19. Nf6+ {[%emt 0:00:00]} Kd8 {[%emt 0:00:30]} 20. Nxg8 {[%emt 0:01:00]} Nxh1 {[%emt 0:00:30]} 21. Nxe7 {[%emt 0:01:30]} Kxe7 {[%emt 0:00:30]} 22. Ne2 {[%emt 0:00:00]} g4 {[%emt 0:04:30]} 23. Kd2 {[%emt 0:02:00]} Nf2 {[%emt 0:06:30]} 24. Rg1 {[%emt 0:01:30]} gxf3 {[%emt 0:02:30]} 25. gxf3 {[%emt 0:00:30]} Nh3 {[%emt 0:00:30]} 26. Rg3 {[%emt 0:00:30]} Rh7 {[%emt 0:12:33]} 27. Ke3 {[%emt 0:00:30]} f6 {[%emt 0:00:46]} 28. f4 {[%emt 0:00:30]} fxe5 {[%emt 0:05:44]} 29. dxe5 {[%emt 0:00:30]} Kf7 {[%emt 0:01:01]} 30. Kf3 {[%emt 0:02:30]} Rh4 {[%emt 0:00:19]} 31. Rg2 {[%emt 0:00:30]} Rh5 {[%emt 0:02:55]} 32. Kg3 {[%emt 0:01:30]} Nxf4 {[%emt 0:02:28]} 33. Nxf4 {[%emt 0:01:30]} Rxe5 {[%emt 0:00:11]} 34. Rh2 {[%emt 0:00:30]} Re3+ {[%emt 0:02:04]} 35. Kg4 {[%emt 0:00:30]} Ke7 {[%emt 0:00:48]} 36. Re2 {[%emt 0:12:30]} Rxe2 {[%emt 0:00:12]} 37. Nxe2 {[%emt 0:00:30]} Kd6 {[%emt 0:00:34]} 38. Kf4 {[%emt 0:00:30]} c5 {[%emt 0:00:22]} 39. Ng1 {[%emt 0:00:30]} e5+ {[%emt 0:00:47]} 40. Kf5 {[%emt 0:00:30]} b5 {[%emt 0:00:53]} 41. Nf3 {[%emt 0:31:30]} e4 {[%emt 0:30:09]} 42. Ng1 {[%emt 0:00:30]} b4 {[%emt 0:02:37]} 43. Ne2 {[%emt 0:02:30]} a5 {[%emt 0:01:12]} 44. b3 {[%emt 0:00:00]} Kc6 {[%emt 0:00:00]} 45. Ke5 {[%emt 0:00:00]} e3 {[%emt 0:00:00]} 46. Nf4 {[%emt 0:00:00]} d4 {[%emt 0:00:00]} 47. Ne2 {[%emt 0:00:00]} Kb6 {[%emt 0:00:00]} 48. Kd5 {[%emt 0:00:00]} Kb5 {[%emt 0:00:00]} 49. Nc1 {[%emt 0:00:00]} a4 {[%emt 0:00:00]} 50. Ne2 {[%emt 0:00:00]} axb3 {[%emt 0:00:00]} 51. axb3 {[%emt 0:00:00]} Kb6 {[%emt 0:00:00]} 52. Kc4 {[%emt 0:00:00]} Kc6 {[%emt 0:00:00]} 53. Nc1 {[%emt 0:00:00]} Kd6 {[%emt 0:00:00]} 54. Nd3 {[%emt 0:00:00]} e2 {[%emt 0:00:00]} 55. Ne1 {[%emt 0:00:00]} Kc6 {[%emt 0:00:00]} 56. Kd3 {[%emt 0:00:00]} Kd5 {[%emt 0:00:00]} 57. Kxe2 {[%emt 0:00:00]} c4 {[%emt 0:00:00]} 58. Nd3 {[%emt 0:00:00]} cxd3+ {[%emt 0:00:00]} 59. Kxd3 {[%emt 0:00:00]} 1-0

[Event "Frauenbundesliga 2021-22"]
[Site "Germany"]
[Date "2022.04.10"]
[Round "8.9"]
[White "Koepke, Elena"]
[Black "Hincu, Olga"]
[Result "1-0"]
[ECO "B13"]
[WhiteElo "2304"]
[BlackElo "2070"]
[Annotator "NA RC"]
[PlyCount "95"]
[EventDate "2021.11.26"]
[EventType "team-tourn"]
[EventCountry "GER"]
[SourceTitle "playchess.com"]
[Source "ChessBase"]
[SourceQuality "1"]
[WhiteTeam "DEI"]
[BlackTeam "LEI"]
[WhiteTeamCountry "GER"]
[BlackTeamCountry "MDA"]
[TimeControl "40/5400+30:1800+30"]

1. e4 {[%emt 0:01:00]} c6 {[%emt 0:01:00]} 2. d4 {[%emt 0:00:00]} d5 {[%emt 0:00:00]} 3. exd5 {[%emt 0:00:00]} cxd5 {[%emt 0:00:00]} 4. c4 {[%emt 0:00:00]} Nf6 {[%emt 0:00:00]} 5. Nc3 {[%emt 0:00:00]} Nc6 {[%emt 0:00:00]} 6. Bg5 {[%emt 0:00:30]} Be6 {[%emt 0:00:30]} 7. a3 {[%emt 0:03:30]} g6 {[%emt 0:00:30]} 8. Bxf6 {[%emt 0:01:30]} exf6 {[%emt 0:00:00]} 9. c5 {[%emt 0:03:30]} Bh6 {[%emt 0:07:00]} 10. Be2 {[%emt 0:11:30]} O-O {[%emt 0:03:30]} 11. Bf3 {[%emt 0:04:30]} f5 {[%emt 0:12:30]} 12. Nge2 {[%emt 0:06:30]} g5 {[%emt 0:06:30]} 13. h3 $15 {[%emt 0:11:30]} (13. g3 $1 $11) 13... Bg7 {[%emt 0:12:30]} 14. Qd3 {[%emt 0:03:30]} Qd7 {[%emt 0:03:30]} 15. g3 {[%emt 0:04:30]} Rfe8 {[%emt 0:10:30]} 16. Kf1 {[%emt 0:10:30]} Rad8 {[%emt 0:11:30]} 17. b4 {[%emt 0:05:30]} f4 {[%emt 0:11:59]} 18. g4 {[%emt 0:14:29]} f5 {[%emt 0:01:35]} 19. Rg1 {[%emt 0:11:24]} Ne7 {[%emt 0:05:11]} 20. Nb5 {[%emt 0:02:28]} fxg4 {[%emt 0:02:33]} 21. hxg4 {[%emt 0:00:20]} h5 {[%emt 0:01:39]} 22. Nd6 {[%emt 0:02:13]} hxg4 {[%emt 0:03:27]} 23. Nxe8 {[%emt 0:01:19]} Rxe8 {[%emt 0:02:35]} 24. Bh1 {[%emt 0:00:08]} Bf5 {[%emt 0:00:59]} 25. Qb3 {[%emt 0:01:06]} f3 {[%emt 0:00:35]} 26. Bxf3 {[%emt 0:00:52]} gxf3 {[%emt 0:00:06]} 27. Qxf3 {[%emt 0:00:00]} Bh3+ {[%emt 0:02:40]} 28. Ke1 {[%emt 0:00:03]} Nc6 {[%emt 0:01:00]} 29. Kd2 {[%emt 0:01:44]} Nxd4 {[%emt 0:00:38]} 30. Nxd4 {[%emt 0:00:16]} Bxd4 {[%emt 0:00:26]} 31. Rxg5+ {[%emt 0:00:05]} Bg7 {[%emt 0:00:19]} 32. Rag1 {[%emt 0:00:24]} Re7 {[%emt 0:00:16]} 33. Rxd5 {[%emt 0:00:55]} Qe6 {[%emt 0:00:37]} 34. Qd3 {[%emt 0:01:11]} Qh6+ {[%emt 0:00:13]} 35. Kc2 {[%emt 0:00:07]} Rf7 {[%emt 0:01:04]} 36. Rd8+ {[%emt 0:00:22]} Rf8 {[%emt 0:00:01]} 37. Rxf8+ {[%emt 0:00:38]} Kxf8 {[%emt 0:00:03]} 38. Rh1 {[%emt 0:00:24]} Qf6 {[%emt 0:01:24]} 39. Rxh3 {[%emt 0:00:08]} Qxf2+ {[%emt 0:00:31]} 40. Kd1 {[%emt 0:00:45]} Qg1+ {[%emt 0:00:20]} 41. Ke2 {[%emt 0:00:39]} Qg2+ {[%emt 0:01:19]} 42. Ke1 {[%emt 0:00:30]} Bf6 {[%emt 0:05:30]} 43. Rf3 {[%emt 0:08:30]} Qh1+ {[%emt 0:00:30]} 44. Rf1 {[%emt 0:05:57]} Qh4+ {[%emt 0:00:30]} 45. Kd1 {[%emt 0:00:06]} Kg7 {[%emt 0:01:30]} 46. Rg1+ {[%emt 0:01:48]} Bg5 {[%emt 0:02:30]} 47. Qd7+ {[%emt 0:00:16]} Kh6 {[%emt 0:00:30]} 48. Qg4 {[%emt 0:00:33]} 1-0

[Event "Frauenbundesliga 2021-22"]
[Site "Germany"]
[Date "2022.04.10"]
[Round "8.10"]
[White "Schulz, Petra"]
[Black "Jelica, Mara"]
[Result "0-1"]
[ECO "C68"]
[WhiteElo "1991"]
[BlackElo "2085"]
[Annotator "NA RC"]
[PlyCount "88"]
[EventDate "2021.11.26"]
[EventType "team-tourn"]
[EventCountry "GER"]
[SourceTitle "playchess.com"]
[Source "ChessBase"]
[SourceQuality "1"]
[WhiteTeam "LEI"]
[BlackTeam "DEI"]
[WhiteTeamCountry "GER"]
[BlackTeamCountry "CRO"]
[TimeControl "40/5400+30:1800+30"]

1. e4 {[%emt 0:01:00]} e5 {[%emt 0:01:00]} 2. Nf3 {[%emt 0:00:00]} Nc6 {[%emt 0:00:00]} 3. Bb5 {[%emt 0:00:00]} a6 {[%emt 0:00:00]} 4. Bxc6 {[%emt 0:00:30]} dxc6 {[%emt 0:00:00]} 5. O-O {[%emt 0:00:00]} Bg4 {[%emt 0:01:00]} 6. h3 {[%emt 0:07:00]} h5 {[%emt 0:00:30]} 7. d3 {[%emt 0:00:30]} Qf6 {[%emt 0:00:30]} 8. Nbd2 {[%emt 0:01:30]} Bc5 {[%emt 0:00:30]} 9. Re1 {[%emt 0:17:30]} Ne7 {[%emt 0:01:30]} 10. d4 {[%emt 0:05:30] [#]} Bxf3 {[%emt 0:19:30]} (10... exd4 $1 $15 11. Qe2 (11. hxg4 hxg4 12. Nb3 gxf3 $17) 11... Bb6) 11. Nxf3 {[%emt 0:02:30]} Bxd4 {[%emt 0:04:30]} 12. Bg5 {[%emt 0:02:30]} Qd6 {[%emt 0:04:30]} 13. Bxe7 $11 {[%emt 0:00:30]} Kxe7 {[%emt 0:02:30]} 14. Nxd4 {[%emt 0:13:30]} exd4 {[%emt 0:01:30]} 15. Qf3 {[%emt 0:02:30]} Rad8 {[%emt 0:01:30]} 16. e5 {[%emt 0:03:30]} Qd5 {[%emt 0:06:30]} 17. Qg3 {[%emt 0:01:30]} Kd7 {[%emt 0:11:30]} 18. e6+ {[%emt 0:17:30]} fxe6 {[%emt 0:01:30]} 19. Qxg7+ {[%emt 0:00:30]} Kc8 {[%emt 0:00:30]} 20. Qf6 {[%emt 0:00:30]} Rde8 {[%emt 0:05:30]} 21. Re5 {[%emt 0:04:48]} Qc4 {[%emt 0:01:30]} 22. Qg6 {[%emt 0:04:41]} Rhg8 {[%emt 0:02:30]} 23. Qe4 {[%emt 0:00:30]} h4 {[%emt 0:05:30]} 24. b3 {[%emt 0:00:20]} Qc3 {[%emt 0:01:30]} 25. Re1 {[%emt 0:00:12]} Qxh3 {[%emt 0:00:30]} 26. Rxe6 {[%emt 0:01:48]} Qxe6 {[%emt 0:03:30]} 27. Qxe6+ {[%emt 0:00:07]} Rxe6 {[%emt 0:00:30]} 28. Rxe6 {[%emt 0:00:05]} c5 {[%emt 0:00:30]} 29. Rh6 {[%emt 0:02:53]} Re8 {[%emt 0:03:30]} 30. Kf1 {[%emt 0:00:20]} Re4 {[%emt 0:00:30]} 31. Rf6 {[%emt 0:04:07]} b6 {[%emt 0:02:42]} 32. f3 {[%emt 0:00:11]} Re3 {[%emt 0:00:20]} 33. Rh6 {[%emt 0:02:57]} Rc3 {[%emt 0:00:11]} 34. Rxh4 {[%emt 0:00:05]} Rxc2 {[%emt 0:00:00]} 35. g4 {[%emt 0:00:18]} Kd7 {[%emt 0:00:47]} 36. g5 {[%emt 0:00:13]} Ke6 {[%emt 0:05:01]} 37. Rf4 {[%emt 0:02:05]} Rh2 {[%emt 0:01:38]} 38. Rf8 {[%emt 0:01:07]} d3 {[%emt 0:04:02]} 39. Ke1 {[%emt 0:00:15]} b5 {[%emt 0:00:40]} 40. f4 {[%emt 0:00:37]} c4 {[%emt 0:02:19]} 41. bxc4 {[%emt 0:30:11]} bxc4 {[%emt 0:30:07]} 42. Rf6+ {[%emt 0:04:29]} Kd5 {[%emt 0:02:09]} 43. g6 {[%emt 0:00:00]} c3 {[%emt 0:00:00]} 44. g7 {[%emt 0:00:00]} d2+ {[%emt 0:00:00]} 0-1

[Event "Frauenbundesliga 2021-22"]
[Site "Germany"]
[Date "2022.04.10"]
[Round "8.11"]
[White "Valkova, Angelika"]
[Black "Germann, Heike"]
[Result "1-0"]
[ECO "E71"]
[WhiteElo "2048"]
[BlackElo "1992"]
[Annotator "NA RC"]
[PlyCount "85"]
[EventDate "2021.11.26"]
[EventType "team-tourn"]
[EventCountry "GER"]
[SourceTitle "playchess.com"]
[Source "ChessBase"]
[SourceQuality "1"]
[WhiteTeam "DEI"]
[BlackTeam "LEI"]
[WhiteTeamCountry "UKR"]
[BlackTeamCountry "GER"]
[TimeControl "40/5400+30:1800+30"]

1. d4 {[%emt 0:01:00]} Nf6 {[%emt 0:01:00]} 2. c4 {[%emt 0:00:00]} g6 {[%emt 0:00:00]} 3. Nc3 {[%emt 0:00:00]} Bg7 {[%emt 0:00:00]} 4. e4 {[%emt 0:00:00]} d6 {[%emt 0:00:00]} 5. h3 {[%emt 0:00:00]} O-O {[%emt 0:00:00]} 6. Be3 {[%emt 0:00:30]} e5 {[%emt 0:00:30]} 7. d5 {[%emt 0:00:00]} Nbd7 {[%emt 0:00:00]} 8. g4 {[%emt 0:00:00]} Nc5 {[%emt 0:01:00]} 9. f3 {[%emt 0:00:30]} a5 {[%emt 0:00:30]} 10. Qd2 {[%emt 0:00:30]} Ne8 {[%emt 0:00:30]} 11. h4 {[%emt 0:00:30]} f5 {[%emt 0:00:30]} 12. gxf5 {[%emt 0:00:30]} gxf5 {[%emt 0:00:30]} 13. O-O-O {[%emt 0:02:30]} Kh8 {[%emt 0:09:30]} 14. Nge2 {[%emt 0:10:30]} f4 {[%emt 0:05:30]} 15. Bf2 {[%emt 0:00:30]} Nf6 {[%emt 0:04:30]} 16. Bh3 {[%emt 0:00:30]} Bxh3 {[%emt 0:06:30]} 17. Rxh3 {[%emt 0:00:00]} Qe7 {[%emt 0:00:30]} 18. Rh2 {[%emt 0:06:00]} Rg8 $16 {[%emt 0:02:30]} (18... b6 $142) 19. Ng1 {[%emt 0:19:30]} Bh6 {[%emt 0:09:30]} 20. Nh3 {[%emt 0:10:30]} Rg6 {[%emt 0:19:30]} 21. Bxc5 {[%emt 0:12:30]} dxc5 {[%emt 0:00:30]} 22. d6 {[%emt 0:00:00]} cxd6 {[%emt 0:00:30]} 23. Qxd6 {[%emt 0:00:00]} Re8 {[%emt 0:05:30]} 24. Rhd2 {[%emt 0:04:30]} Rg3 {[%emt 0:13:30]} 25. Ng1 {[%emt 0:01:30]} Bf8 {[%emt 0:06:22]} 26. Qb6 {[%emt 0:02:30]} Qg7 {[%emt 0:06:19]} 27. Nce2 {[%emt 0:02:30]} Rg2 {[%emt 0:00:22]} 28. Qxa5 {[%emt 0:06:30]} Qh6 {[%emt 0:02:13]} 29. Kb1 {[%emt 0:03:19]} Qxh4 {[%emt 0:02:07]} 30. Rd8 {[%emt 0:07:01]} Qh5 {[%emt 0:01:22]} 31. Qb6 {[%emt 0:02:53]} Qf7 {[%emt 0:01:15]} 32. Qb5 {[%emt 0:03:47]} Rg7 {[%emt 0:01:51]} 33. R8d3 {[%emt 0:01:21]} Rg2 {[%emt 0:00:48]} 34. Rd8 {[%emt 0:00:37]} Rg7 {[%emt 0:00:03]} 35. R8d3 {[%emt 0:00:07]} Rg2 {[%emt 0:00:02]} 36. Nc3 {[%emt 0:00:49]} Qg6 {[%emt 0:01:24]} 37. Nge2 {[%emt 0:00:34]} Qf7 {[%emt 0:01:03]} 38. Rd8 {[%emt 0:01:31]} Rf2 {[%emt 0:00:24]} 39. Rxe8 {[%emt 0:00:37]} Nxe8 {[%emt 0:00:26]} 40. Rd7 {[%emt 0:02:54]} Qg6 {[%emt 0:00:48]} 41. Rd8 {[%emt 0:01:00]} Nf6 {[%emt 0:08:41]} 42. Rxf8+ {[%emt 0:08:30]} Kg7 {[%emt 0:00:30]} 43. Qxc5 {[%emt 0:00:00]} 1-0

[Event "Frauenbundesliga 2021-22"]
[Site "Germany"]
[Date "2022.04.10"]
[Round "8.12"]
[White "Just, Anita"]
[Black "Noppes, Marina"]
[Result "1-0"]
[ECO "B28"]
[WhiteElo "1895"]
[BlackElo "1936"]
[Annotator "NA RC"]
[PlyCount "91"]
[EventDate "2021.11.26"]
[EventType "team-tourn"]
[EventCountry "GER"]
[SourceTitle "playchess.com"]
[Source "ChessBase"]
[SourceQuality "1"]
[WhiteTeam "LEI"]
[BlackTeam "DEI"]
[WhiteTeamCountry "GER"]
[BlackTeamCountry "GER"]
[TimeControl "40/5400+30:1800+30"]

1. e4 {[%emt 0:01:00]} c5 {[%emt 0:09:00]} 2. Nf3 {[%emt 0:00:00]} a6 {[%emt 0:00:30]} 3. c4 {[%emt 0:00:00]} Nc6 {[%emt 0:01:30]} 4. d4 {[%emt 0:02:30]} cxd4 {[%emt 0:00:00]} 5. Nxd4 {[%emt 0:00:00]} Nf6 {[%emt 0:00:00]} 6. Nc3 {[%emt 0:01:00]} Qa5 {[%emt 0:01:30]} 7. Nb3 {[%emt 0:06:30]} Qc7 {[%emt 0:05:30]} 8. f3 {[%emt 0:13:30]} e6 {[%emt 0:00:30]} 9. Be3 {[%emt 0:01:30]} b6 {[%emt 0:06:30]} 10. Qd2 {[%emt 0:03:30]} Bb4 {[%emt 0:09:30]} 11. Be2 {[%emt 0:04:30]} O-O {[%emt 0:01:30]} 12. O-O $14 {[%emt 0:01:30]} d5 {[%emt 0:07:30]} 13. cxd5 {[%emt 0:03:30]} exd5 {[%emt 0:00:30]} 14. Bf4 {[%emt 0:09:30]} Qe7 {[%emt 0:05:30]} 15. Nxd5 {[%emt 0:06:30]} Nxd5 {[%emt 0:04:30]} 16. Qxd5 {[%emt 0:00:30]} Bb7 {[%emt 0:00:30]} 17. Bg5 {[%emt 0:03:30]} Qc7 {[%emt 0:00:30]} 18. Rfd1 {[%emt 0:02:30]} Ne5 {[%emt 0:07:30]} 19. Qd4 {[%emt 0:02:30]} a5 {[%emt 0:00:30]} 20. Rac1 {[%emt 0:02:30]} Nc6 {[%emt 0:02:30]} 21. Qd7 {[%emt 0:02:30]} Rac8 {[%emt 0:06:30]} 22. a3 {[%emt 0:02:30]} Bc5+ {[%emt 0:03:30]} 23. Nxc5 {[%emt 0:00:30]} bxc5 {[%emt 0:00:30]} 24. Qxc7 {[%emt 0:00:30]} Rxc7 {[%emt 0:00:00]} 25. Rxc5 {[%emt 0:02:30]} Rfc8 {[%emt 0:05:00]} 26. Bb5 {[%emt 0:06:30]} f6 {[%emt 0:02:30]} 27. Bc4+ {[%emt 0:02:30]} Kf8 {[%emt 0:00:30]} 28. Bf4 {[%emt 0:00:30]} Ne5 {[%emt 0:00:30]} 29. Bxe5 {[%emt 0:03:36]} Rxc5 {[%emt 0:04:40]} 30. Bd6+ {[%emt 0:00:11]} Ke8 {[%emt 0:00:03]} 31. Bxc5 {[%emt 0:00:12]} Rxc5 {[%emt 0:00:02]} 32. Bg8 {[%emt 0:03:11]} h6 {[%emt 0:00:44]} 33. Rd2 {[%emt 0:00:30]} Ke7 {[%emt 0:01:47]} 34. Kf2 {[%emt 0:00:16]} Rh5 {[%emt 0:04:32]} 35. h3 {[%emt 0:01:03]} Re5 {[%emt 0:00:11]} 36. Ke3 {[%emt 0:03:12]} g5 {[%emt 0:01:00]} 37. Bd5 {[%emt 0:02:46]} Ba6 {[%emt 0:00:23]} 38. Rc2 {[%emt 0:00:37]} Bf1 {[%emt 0:01:27]} 39. Kf2 {[%emt 0:01:27]} Bd3 {[%emt 0:00:40]} 40. Rc3 {[%emt 0:00:28]} Bb1 {[%emt 0:01:18]} 41. Rc7+ {[%emt 0:30:36]} Kd8 {[%emt 0:30:19]} 42. Ra7 {[%emt 0:02:26]} f5 {[%emt 0:01:26]} 43. Ke3 {[%emt 0:01:21]} fxe4 {[%emt 0:04:20]} 44. fxe4 {[%emt 0:01:37]} Bc2 {[%emt 0:00:18]} 45. Kd4 {[%emt 0:01:39]} Re7 {[%emt 0:00:29]} 46. Rxa5 {[%emt 0:00:18]} 1-0

[Event "Frauenbundesliga 2021-22"]
[Site "Germany"]
[Date "2022.05.25"]
[Round "9.1"]
[White "Osmak, Yuliia"]
[Black "Saduakassova, Dinara"]
[Result "1/2-1/2"]
[ECO "E20"]
[WhiteElo "2428"]
[BlackElo "2446"]
[Annotator "TA"]
[PlyCount "39"]
[EventDate "2021.11.26"]
[EventType "team-tourn"]
[EventCountry "GER"]
[SourceTitle "playchess.com"]
[Source "ChessBase"]
[SourceQuality "1"]
[WhiteTeam "Bad Koenigshofen"]
[BlackTeam "Schwaebisch Hall"]
[BlackTeamCountry "KAZ"]
[TimeControl "40/5400+30:1800+30"]

{[%evp 13,39,-1,7,0,0,0,0,0,0,0,0,0,18,23,19,39,35,12,25,0,0,0,36,0,0,0,33,0]} 1. d4 {[%emt 0:00:04][%cal Bd2d4,Bd4d5][%mdl 32]} Nf6 {[%emt 0:00:21]} 2. c4 {[%emt 0:00:06]} e6 {[%emt 0:00:06]} 3. Nc3 {[%emt 0:00:06]} Bb4 {[%emt 0:00:07]} 4. f3 {[%emt 0:00:04]} c5 {[%emt 0:01:54]} 5. d5 {[%emt 0:00:15]} O-O {[%emt 0:02:37]} 6. e4 {[%emt 0:00:28]} d6 {[%emt 0:01:10]} 7. Nge2 {[%emt 0:02:42]} b5 {[%emt 0:01:28]} 8. Nf4 {[%emt 0:00:35] E20: Nimzo-Indian: 4 g3 and 4 f3.} ({Much worse is} 8. cxb5 exd5 9. exd5 Nbd7 $15) 8... exd5 {[%emt 0:03:48]} 9. Nfxd5 {[%emt 0:04:00]} Nxd5 {[%emt 0:03:03]} 10. Qxd5 {[%emt 0:00:06] The position is equal.} Qb6 {[%emt 0:01:58][%cal Oc8e6]} 11. Bf4 {[%emt 0:10:18]} ({Of course not} 11. Qxa8 Bb7 12. Qxb7 Qxb7 13. cxb5 d5 $17) 11... Be6 {[%emt 0:27:39]} 12. Qxd6 {[%emt 0:16:22]} bxc4 {[%emt 0:01:44] [#]} 13. Kf2 $146 {[%emt 0:10:50]} ({Predecessor:} 13. Qd2 Nc6 14. Kf2 Rad8 15. Qc1 Nd4 16. Nd5 Bxd5 17. exd5 Rxd5 18. Bxc4 Rf5 19. Rd1 {0-1 (31) Huber,B (2271)-Delgado Ramirez,N (2596) Tegernsee 2021}) 13... Bxc3 {[%emt 0:11:54]} 14. bxc3 {[%emt 0:00:25]} Rd8 {[%emt 0:00:59]} 15. Qc7 {[%emt 0:11:53]} Rd7 {[%emt 0:05:39]} 16. Qc8+ {[%emt 0:00:11]} Rd8 {[%emt 0:00:05]} 17. Qc7 {[%emt 0:00:05]} Rd7 {[%emt 0:03:09]} 18. Qc8+ {[%emt 0:08:58]} Rd8 {[%emt 0:00:11]} 19. Qc7 {[%emt 0:00:31]} Rd7 {[%emt 0:02:20]} 20. Qc8+ {[%emt 0:02:16] Weighted Error Value: White=0.10 (very precise) /Black=0.02 (flawless)} 1/2-1/2

[Event "Frauenbundesliga 2021-22"]
[Site "Germany"]
[Date "2022.05.25"]
[Round "9.2"]
[White "Kashlinskaya, Alina"]
[Black "Schneider, Jana"]
[Result "1-0"]
[ECO "D36"]
[WhiteElo "2498"]
[BlackElo "2303"]
[Annotator "TA"]
[PlyCount "63"]
[EventDate "2021.11.26"]
[EventType "team-tourn"]
[EventCountry "GER"]
[SourceTitle "playchess.com"]
[Source "ChessBase"]
[SourceQuality "1"]
[WhiteTeam "Schwaebisch Hall"]
[BlackTeam "Bad Koenigshofen"]
[BlackTeamCountry "GER"]
[TimeControl "40/5400+30:1800+30"]

{[%evp 21,62,20,20,19,23,14,18,2,25,29,63,48,51,53,139,85,127,107,177,158,174,187,185,205,390,345,431,424,475,485,476,466,1628,1566,29961,29964,29988,29989,29989,29990,29990,29991,29999]} 1. d4 {[%emt 0:00:06]} d5 {[%emt 0:00:11]} 2. c4 {[%emt 0:00:10]} e6 {[%emt 0:00:08]} 3. Nc3 {[%emt 0:00:08]} Nf6 {[%emt 0:00:09]} 4. cxd5 {[%emt 0:00:25]} exd5 {[%emt 0:00:09]} 5. Bg5 {[%emt 0:00:16]} Be7 {[%emt 0:00:17]} 6. e3 {[%emt 0:00:39]} O-O {[%emt 0:00:16]} 7. Bd3 {[%emt 0:00:13]} h6 {[%emt 0:00:28]} 8. Bh4 {[%emt 0:04:18]} Re8 {[%emt 0:01:17]} 9. Nge2 {[%emt 0:01:48]} Nbd7 {[%emt 0:01:19]} 10. O-O {[%emt 0:01:19]} c6 {[%emt 0:00:23]} 11. Qc2 {[%emt 0:02:19]} Nh5 {[%emt 0:01:07]} 12. Bxe7 {[%emt 0:01:48] D36: Queen's Gambit Declined: Exchange Variation: Main line (5 Bg5 c6 6 Qc2).} Qxe7 {[%emt 0:00:09]} 13. Rae1 {[%emt 0:01:11]} Nf8 {[%emt 0:08:08]} (13... a5 {feels hotter.} 14. Na4 Qd6 15. Rc1 b5) 14. Nc1 {[%emt 0:01:27] [#] The position is equal.} g6 $146 {[%emt 0:05:37]} (14... b6 {with more complications.} 15. e4 Nf4 16. Re3 Qg5) ({Predecessor:} 14... Bd7 15. f3 Rad8 16. Qf2 Bc8 17. a3 Nf6 18. b4 a5 19. Qb2 axb4 20. axb4 b5 {1-0 (66) Jumabayev,R (2631)-Salem,A (2690) Warsaw 2021}) 15. f3 {[%emt 0:05:45]} Qf6 {[%emt 0:04:39]} 16. Qf2 {[%emt 0:05:25]} Ne6 {[%emt 0:03:10]} 17. Kh1 {[%emt 0:15:53]} Rd8 {[%emt 0:02:18]} (17... Nhg7 $14) 18. f4 {[%emt 0:03:32]} (18. g4 $142 Nhg7 19. f4) 18... Nhg7 {[%emt 0:04:39] [#]} 19. g4 $1 {[%emt 0:02:43][%cal Bg2g4,Bg4f5][%mdl 32] White is more active.} b6 {[%emt 0:14:33]} (19... h5 $16) 20. N1e2 $18 {[%emt 0:08:31] Black must now prevent e4.} c5 {[%emt 0:05:56]} 21. f5 {[%emt 0:03:01]} gxf5 {[%emt 0:05:42]} 22. gxf5 {[%emt 0:00:45]} Nc7 {[%emt 0:05:27]} (22... Ng5 {was necessary.} 23. Qg2 cxd4) 23. Rg1 {[%emt 0:01:29]} Kh8 {[%emt 0:01:27]} 24. Rg2 {[%emt 0:06:28]} Ba6 {[%emt 0:09:29]} (24... c4 $2 25. Bc2 $18) 25. Bxa6 {[%emt 0:01:09]} Nxa6 {[%emt 0:00:07]} 26. Reg1 {[%emt 0:03:25]} Rg8 {[%emt 0:04:46]} (26... Nxf5 $142 27. Rf1 Nb4 28. Qxf5 Qxf5 29. Rxf5 Rg8 30. Rxf7 Nd3 31. Nxd5 Rgf8) 27. Nxd5 {[%emt 0:01:03]} Qxf5 {[%emt 0:00:49] [#]} 28. Qh4 $1 {[%emt 0:01:25] White mates.} Nh5 {[%emt 0:04:11]} (28... Qh5 29. Qf6) 29. Rxg8+ {[%emt 0:01:31]} Rxg8 {[%emt 0:00:15]} 30. Rxg8+ {[%emt 0:00:06]} Kh7 {[%emt 0:00:21] [#]} 31. Qxh5 $3 {[%emt 0:01:16][%mdl 512]} Qxh5 {[%emt 0:00:27]} (31... Qb1+ 32. Rg1) 32. Nf6# {[%emt 0:00:04] White took control after the opening.  Weighted Error Value: White=0.05 (flawless) /Black=0.77} 1-0